fUSD/lending_fUSD_20260612
["ID","MTS","AMOUNT","RATE_DAILY","PERIOD"]
[424867247,1781217041000,-503.39,0.0001544,2]
[424867246,1781217041000,-2230.96,0.00015385,2]
[424867245,1781217041000,-166.66,0.00015199,2]
[424867243,1781217041000,-1439.96633009,0.00014978,2]
[424867249,1781217041000,-1307.32542544,0.00015563,2]
[424867250,1781217041000,-151.0,0.0001572,2]
[424867255,1781217041000,-151.0,0.0001572,2]
[424867256,1781217041000,-166.66,0.00015901,2]
[424867248,1781217041000,-960.22612449,0.00015563,2]
[424867267,1781217041000,-2008.02,0.00017061,2]
[424867251,1781217041000,-153.0,0.0001572,2]
[424867252,1781217041000,-151.0,0.0001572,2]
[424867254,1781217041000,-151.0,0.0001572,2]
[424867253,1781217041000,-151.0,0.0001572,2]
[424867296,1781217041000,-502.0,0.00019908,3]
[424867258,1781217041000,-184.94,0.00016073,2]
[424867260,1781217041000,-318.05,0.00016107,2]
[424867259,1781217041000,-158.31,0.000161,2]
[424867261,1781217041000,-1500.0,0.00016215,2]
[424867265,1781217041000,-168.39,0.00016712,2]
[424867262,1781217041000,-425.6,0.00016438,2]
[424867263,1781217041000,-450.27,0.00016438,2]
[424867264,1781217041000,-2008.02,0.00016645,2]
[424867257,1781217041000,-300.0,0.00016,2]
[424867293,1781217041000,-861.06,0.00019339,2]
[424867335,1781217041000,-160.0,0.00021,2]
[424867299,1781217041000,-195.87344,0.0002,2]
[424867329,1781217041000,-153.0,0.00021,2]
[424867330,1781217041000,-158.0,0.00021,2]
[424867339,1781217041000,-200.0,0.00021147,2]
[424867332,1781217041000,-153.0,0.00021,2]
[424867336,1781217041000,-481.0,0.00021,2]
[424867337,1781217041000,-1125.0,0.00021096,2]
[424867338,1781217041000,-151.0,0.00021147,2]
[424867331,1781217041000,-155.0,0.00021,2]
[424867333,1781217041000,-153.0,0.00021,2]
[424867334,1781217041000,-741.0,0.00021,2]
[424867340,1781217041000,-151.0,0.00021147,2]
[424867352,1781217041000,-500.0,0.00021147,2]
[424867343,1781217041000,-151.0,0.00021147,2]
[424867348,1781217041000,-151.0,0.00021147,2]
[424867342,1781217041000,-151.0,0.00021147,2]
[424867341,1781217041000,-151.0,0.00021147,2]
[424867349,1781217041000,-151.0,0.00021147,2]
[424867346,1781217041000,-151.0,0.00021147,2]
[424867351,1781217041000,-151.0,0.00021147,2]
[424867347,1781217041000,-2080.17592889,0.00021147,2]
[424867350,1781217041000,-500.0,0.00021147,2]
[424867345,1781217041000,-151.0,0.00021147,2]
[424867353,1781217041000,-151.0,0.00021147,2]
[424867354,1781217041000,-151.0,0.00021147,2]
[424867294,1781217041000,-150.99,0.00019339,2]
[424867328,1781217041000,-299.0,0.00021,2]
[424867320,1781217041000,-401.0,0.00020671,2]
[424867344,1781217041000,-151.0,0.00021147,2]
[424867323,1781217041000,-192.1695424,0.00020912,2]
[424867297,1781217041000,-198.51852477,0.0002,2]
[424867324,1781217041000,-154.0,0.00021,2]
[424867300,1781217041000,-675.0,0.0002,2]
[424867295,1781217041000,-1865.36488656,0.00019503,2]
[424867302,1781217041000,-151.0,0.0002,2]
[424867314,1781217041000,-150.0,0.0002058,2]
[424867303,1781217041000,-299.0,0.0002,2]
[424867304,1781217041000,-153.0,0.0002,2]
[424867313,1781217041000,-425.6,0.00020381,2]
[424867308,1781217041000,-153.0,0.0002,2]
[424867307,1781217041000,-153.0,0.0002,2]
[424867311,1781217041000,-481.0,0.0002,2]
[424867309,1781217041000,-741.0,0.0002,2]
[424867306,1781217041000,-155.0,0.0002,2]
[424867319,1781217041000,-1486.8414,0.00020622,7]
[424867325,1781217041000,-675.0,0.00021,2]
[424867305,1781217041000,-158.0,0.0002,2]
[424867322,1781217041000,-502.0,0.00020862,4]
[424867318,1781217041000,-2005.9555727,0.00020599,2]
[424867321,1781217041000,-916.54845612,0.00020849,2]
[424867315,1781217041000,-150.0,0.0002058,2]
[424867317,1781217041000,-151.29325014,0.0002058,2]
[424867327,1781217041000,-155.0,0.00021,2]
[424867316,1781217041000,-150.0,0.0002058,2]
[424867310,1781217041000,-160.0,0.0002,2]
[424867312,1781217041000,-1934.38338736,0.00020051,2]
[424867326,1781217041000,-151.0,0.00021,2]
[424867391,1781217042000,-4080.783229,0.00021678,2]
[424867393,1781217042000,-200.0,0.00021695,2]
[424867398,1781217042000,-150.0,0.00021918,2]
[424867392,1781217042000,-116863.9309896,0.00021678,2]
[424867399,1781217042000,-500.0,0.00022,3]
[424867384,1781217042000,-1307.32542544,0.00021197,2]
[424867390,1781217042000,-1158.2401763,0.00021678,2]
[424867385,1781217042000,-503.39,0.0002123,2]
[424867387,1781217042000,-158.31,0.000214,2]
[424867386,1781217042000,-1469.8976,0.00021256,2]
[424867395,1781217042000,-151.0,0.00021695,2]
[424867397,1781217042000,-5000.0,0.00021918,2]
[424867400,1781217042000,-500.0,0.00022,3]
[424867411,1781217042000,-158.0,0.00022,2]
[424867396,1781217042000,-502.0,0.00021815,5]
[424867402,1781217042000,-500.0,0.00022,3]
[424867412,1781217042000,-155.0,0.00022,2]
[424867401,1781217042000,-500.0,0.00022,3]
[424867403,1781217042000,-500.0,0.00022,3]
[424867406,1781217042000,-2190.53,0.00022,2]
[424867410,1781217042000,-153.0,0.00022,2]
[424867405,1781217042000,-166.45,0.00022,2]
[424867409,1781217042000,-299.0,0.00022,2]
[424867408,1781217042000,-151.0,0.00022,2]
[424867407,1781217042000,-675.0,0.00022,2]
[424867389,1781217042000,-500.0,0.00021442,2]
[424867394,1781217042000,-2157.14243826,0.00021695,2]
[424867388,1781217042000,-500.0,0.00021442,2]
[424867361,1781217042000,-500.0,0.00021147,2]
[424867381,1781217042000,-151.0,0.00021147,2]
[424867355,1781217042000,-500.0,0.00021147,2]
[424867364,1781217042000,-151.0,0.00021147,2]
[424867356,1781217042000,-151.0,0.00021147,2]
[424867363,1781217042000,-151.0,0.00021147,2]
[424867358,1781217042000,-500.0,0.00021147,2]
[424867357,1781217042000,-151.0,0.00021147,2]
[424867359,1781217042000,-151.0,0.00021147,2]
[424867360,1781217042000,-151.0,0.00021147,2]
[424867362,1781217042000,-151.0,0.00021147,2]
[424867365,1781217042000,-151.0,0.00021147,2]
[424867371,1781217042000,-151.0,0.00021147,2]
[424867372,1781217042000,-500.0,0.00021147,2]
[424867383,1781217042000,-960.22612449,0.00021197,2]
[424867368,1781217042000,-151.0,0.00021147,2]
[424867370,1781217042000,-151.0,0.00021147,2]
[424867369,1781217042000,-500.0,0.00021147,2]
[424867373,1781217042000,-151.0,0.00021147,2]
[424867366,1781217042000,-500.0,0.00021147,2]
[424867374,1781217042000,-151.0,0.00021147,2]
[424867375,1781217042000,-500.0,0.00021147,2]
[424867377,1781217042000,-500.0,0.00021147,2]
[424867376,1781217042000,-151.0,0.00021147,2]
[424867378,1781217042000,-151.0,0.00021147,2]
[424867379,1781217042000,-151.0,0.00021147,2]
[424867380,1781217042000,-500.0,0.00021147,2]
[424867382,1781217042000,-151.0,0.00021147,2]
[424867367,1781217042000,-151.0,0.00021147,2]
[424867413,1781217042000,-153.0,0.00022,2]
[424867404,1781217042000,-154.0,0.00022,2]
[424867420,1781217042000,-2236.95670847,0.00022243,2]
[424867436,1781217042000,-153.0,0.00023,2]
[424867448,1781217042000,-2494.55939288,0.00023887,2]
[424867452,1781217042000,-151.0,0.00024,2]
[424867450,1781217042000,-195.87344,0.00024,2]
[424867449,1781217042000,-170.0,0.00024,2]
[424867453,1781217042000,-299.0,0.00024,2]
[424867458,1781217042000,-741.0,0.00024,2]
[424867456,1781217042000,-153.0,0.00024,2]
[424867455,1781217042000,-174.0,0.00024,2]
[424867460,1781217042000,-481.0,0.00024,2]
[424867451,1781217042000,-675.0,0.00024,2]
[424867459,1781217042000,-160.0,0.00024,2]
[424867454,1781217042000,-153.0,0.00024,2]
[424867462,1781217042000,-150.0,0.00024164,2]
[424867463,1781217042000,-8496.24,0.00024174,2]
[424867465,1781217042000,-2234.69,0.00024174,2]
[424867461,1781217042000,-184.94,0.00024109,2]
[424867472,1781217042000,-163.44,0.00024658,2]
[424867464,1781217042000,-1393.94,0.00024174,2]
[424867466,1781217042000,-425.6,0.00024324,2]
[424867470,1781217042000,-355.0,0.00024561,2]
[424867467,1781217042000,-2586.85809042,0.00024435,2]
[424867469,1781217042000,-192.1695424,0.00024526,2]
[424867468,1781217042000,-1421.00119225,0.00024463,2]
[424867471,1781217042000,-1000.0,0.00024658,2]
[424867473,1781217042000,-163.29,0.00024658,2]
[424867414,1781217042000,-153.0,0.00022,2]
[424867437,1781217042000,-153.0,0.00023,2]
[424867438,1781217042000,-741.0,0.00023,2]
[424867457,1781217042000,-153.0,0.00024,2]
[424867445,1781217042000,-333.81194748,0.00023339,2]
[424867435,1781217042000,-160.0,0.00023,2]
[424867415,1781217042000,-741.0,0.00022,2]
[424867419,1781217042000,-200.0,0.00022243,2]
[424867416,1781217042000,-160.0,0.00022,2]
[424867418,1781217042000,-160.52,0.00022122,2]
[424867421,1781217042000,-151.0,0.00022243,2]
[424867422,1781217042000,-425.6,0.00022353,2]
[424867423,1781217042000,-1967.31,0.00022466,2]
[424867434,1781217042000,-158.0,0.00023,2]
[424867428,1781217042000,-151.27920566,0.00022791,2]
[424867427,1781217042000,-2319.72410669,0.00022791,2]
[424867424,1781217042000,-1831.44,0.00022466,2]
[424867426,1781217042000,-200.0,0.00022791,2]
[424867425,1781217042000,-502.0,0.00022769,6]
[424867417,1781217042000,-481.0,0.00022,2]
[424867444,1781217042000,-503.39,0.0002316,2]
[424867431,1781217042000,-151.0,0.00023,2]
[424867432,1781217042000,-299.0,0.00023,2]
[424867429,1781217042000,-154.0,0.00023,2]
[424867430,1781217042000,-675.0,0.00023,2]
[424867439,1781217042000,-160.0,0.00023,2]
[424867441,1781217042000,-150.0,0.00023014,2]
[424867442,1781217042000,-960.22612449,0.00023075,2]
[424867446,1781217042000,-2405.55389863,0.00023339,2]
[424867433,1781217042000,-153.0,0.00023,2]
[424867443,1781217042000,-1307.32542544,0.00023075,2]
[424867440,1781217042000,-481.0,0.00023,2]
[424867447,1781217042000,-502.0,0.00023723,7]
[424867511,1781217043000,-2991.49051684,0.00026627,2]
[424867513,1781217043000,-152.26122564,0.00026716,2]
[424867512,1781217043000,-150.0,0.00026641,2]
[424867522,1781217043000,-1280.88388877,0.00026716,2]
[424867523,1781217043000,-578.20924308,0.00026716,2]
[424867501,1781217043000,-1835.76592143,0.000259,7]
[424867508,1781217043000,-425.6,0.00026296,2]
[424867506,1781217043000,-2884.75459676,0.00026079,2]
[424867510,1781217043000,-355.0,0.00026616,2]
[424867507,1781217043000,-500.0,0.00026192,2]
[424867504,1781217043000,-355.0,0.00025931,2]
[424867524,1781217043000,-152.0,0.00026716,2]
[424867505,1781217043000,-169.49,0.00026027,7]
[424867515,1781217043000,-1068.11,0.00026716,2]
[424867517,1781217043000,-1104.10242787,0.00026716,2]
[424867514,1781217043000,-1030.0,0.00026716,2]
[424867519,1781217043000,-1191.11104074,0.00026716,2]
[424867520,1781217043000,-174.61919141,0.00026716,2]
[424867518,1781217043000,-1148.61238259,0.00026716,2]
[424867516,1781217043000,-1107.63007,0.00026716,2]
[424867525,1781217043000,-209.40437684,0.00026716,2]
[424867527,1781217043000,-1328.27659266,0.00026716,2]
[424867529,1781217043000,-152.0,0.00026716,2]
[424867528,1781217043000,-209.40437684,0.00026716,2]
[424867530,1781217043000,-1377.42282658,0.00026716,2]
[424867531,1781217043000,-721.12765534,0.00026716,2]
[424867526,1781217043000,-151.0,0.00026716,2]
[424867521,1781217043000,-1235.18214925,0.00026716,2]
[424867509,1781217043000,-502.0,0.00026585,10]
[424867533,1781217043000,-151.0,0.00026716,2]
[424867502,1781217043000,-1835.76592141,0.000259,7]
[424867475,1781217043000,-163.44,0.00024886,7]
[424867479,1781217043000,-2682.57183977,0.00024983,2]
[424867482,1781217043000,-299.0,0.00025,2]
[424867481,1781217043000,-168.0,0.00025,2]
[424867484,1781217043000,-164.0,0.00025,2]
[424867477,1781217043000,-960.22612449,0.00024953,2]
[424867476,1781217043000,-163.29,0.00024886,7]
[424867478,1781217043000,-1307.32542544,0.00024953,2]
[424867474,1781217043000,-502.0,0.00024677,8]
[424867486,1781217043000,-749.0,0.00025,2]
[424867480,1781217043000,-689.0,0.00025,2]
[424867483,1781217043000,-157.0,0.00025,2]
[424867485,1781217043000,-153.0,0.00025,2]
[424867488,1781217043000,-489.0,0.00025,2]
[424867487,1781217043000,-171.80496035,0.00025,2]
[424867493,1781217043000,-355.0,0.00025246,2]
[424867497,1781217043000,-502.0,0.00025631,9]
[424867494,1781217043000,-150.0,0.00025373,2]
[424867496,1781217043000,-500.0,0.00025616,2]
[424867489,1781217043000,-163.47,0.00025115,30]
[424867499,1781217043000,-1393.94,0.00025786,2]
[424867495,1781217043000,-2781.82699784,0.00025531,2]
[424867490,1781217043000,-163.44,0.00025115,30]
[424867498,1781217043000,-8496.24,0.00025786,2]
[424867491,1781217043000,-163.29,0.00025115,30]
[424867492,1781217043000,-152.0,0.00025185,7]
[424867500,1781217043000,-2234.69,0.00025786,2]
[424867503,1781217043000,-1835.76592141,0.000259,7]
[424867532,1781217043000,-152.0,0.00026716,2]
[424867578,1781217043000,-151.0,0.00026991,2]
[424867535,1781217043000,-209.40437684,0.00026716,2]
[424867570,1781217043000,-2054.15682156,0.00026716,2]
[424867573,1781217043000,-960.22612449,0.00026831,2]
[424867566,1781217043000,-500.0,0.00026716,2]
[424867567,1781217043000,-1842.0326633,0.00026716,2]
[424867562,1781217043000,-500.0,0.00026716,2]
[424867569,1781217043000,-1980.8648231,0.00026716,2]
[424867568,1781217043000,-1910.18787185,0.00026716,2]
[424867574,1781217043000,-1307.32542544,0.00026831,2]
[424867576,1781217043000,-151.0,0.00026936,2]
[424867575,1781217043000,-151.0,0.00026881,2]
[424867593,1781217043000,-489.823937,0.00027044,2]
[424867577,1781217043000,-500.0,0.00026978,2]
[424867583,1781217043000,-1451.861569,0.00027044,2]
[424867584,1781217043000,-1451.861569,0.00027044,2]
[424867582,1781217043000,-1451.861569,0.00027044,2]
[424867580,1781217043000,-433595.2622547,0.00027044,2]
[424867579,1781217043000,-154.0221537,0.00027044,2]
[424867581,1781217043000,-158952.2451784,0.00027044,2]
[424867586,1781217043000,-1314.640837,0.00027044,2]
[424867587,1781217043000,-1314.640837,0.00027044,2]
[424867589,1781217043000,-1314.640837,0.00027044,2]
[424867588,1781217043000,-1314.640837,0.00027044,2]
[424867590,1781217043000,-151.0,0.00027044,2]
[424867592,1781217043000,-176.165138,0.00027044,2]
[424867594,1781217043000,-489.823937,0.00027044,2]
[424867591,1781217043000,-489.823937,0.00027044,2]
[424867534,1781217043000,-1428.38747117,0.00026716,2]
[424867560,1781217043000,-500.0,0.00026716,2]
[424867563,1781217043000,-152.0,0.00026716,2]
[424867585,1781217043000,-1451.861569,0.00027044,2]
[424867565,1781217043000,-500.0,0.00026716,2]
[424867564,1781217043000,-500.0,0.00026716,2]
[424867536,1781217043000,-160.2706454,0.00026716,2]
[424867539,1781217043000,-2287.58423773,0.00026716,2]
[424867537,1781217043000,-9552.16786547,0.00026716,2]
[424867538,1781217043000,-152.0,0.00026716,2]
[424867546,1781217043000,-500.0,0.00026716,2]
[424867541,1781217043000,-1481.2378076,0.00026716,2]
[424867540,1781217043000,-151.0,0.00026716,2]
[424867543,1781217043000,-693.39197629,0.00026716,2]
[424867544,1781217043000,-152.0,0.00026716,2]
[424867545,1781217043000,-1536.04360648,0.00026716,2]
[424867548,1781217043000,-500.0,0.00026716,2]
[424867547,1781217043000,-1592.87721992,0.00026716,2]
[424867542,1781217043000,-500.0,0.00026716,2]
[424867552,1781217043000,-500.0,0.00026716,2]
[424867549,1781217043000,-151.0,0.00026716,2]
[424867571,1781217043000,-151.0,0.00026771,2]
[424867561,1781217043000,-152.0,0.00026716,2]
[424867572,1781217043000,-151.0,0.00026826,2]
[424867555,1781217043000,-500.0,0.00026716,2]
[424867559,1781217043000,-152.0,0.00026716,2]
[424867554,1781217043000,-1712.93078311,0.00026716,2]
[424867553,1781217043000,-152.0,0.00026716,2]
[424867556,1781217043000,-152.0,0.00026716,2]
[424867557,1781217043000,-1776.30922209,0.00026716,2]
[424867558,1781217043000,-500.0,0.00026716,2]
[424867551,1781217043000,-152.0,0.00026716,2]
[424867550,1781217043000,-1651.81367706,0.00026716,2]
[424867619,1781217044000,-303.00381317,0.00027378,2]
[424867617,1781217044000,-174.08031617,0.00027359,7]
[424867622,1781217044000,-165.009137,0.00027397,2]
[424867621,1781217044000,-165.009137,0.00027397,2]
[424867623,1781217044000,-165.009137,0.00027397,2]
[424867620,1781217044000,-1500.0,0.00027397,2]
[424867624,1781217044000,-165.009137,0.00027397,2]
[424867625,1781217044000,-4172.02,0.00027397,10]
[424867626,1781217044000,-282.5,0.00027397,2]
[424867633,1781217044000,-155.51,0.0002755,2]
[424867632,1781217044000,-155.66,0.0002755,2]
[424867630,1781217044000,-273.28,0.0002755,30]
[424867628,1781217044000,-500.0,0.000275,7]
[424867629,1781217044000,-502.0,0.00027538,10]
[424867631,1781217044000,-164.25,0.0002755,30]
[424867634,1781217044000,-150.0,0.0002758,2]
[424867627,1781217044000,-5312.37,0.00027397,10]
[424867618,1781217044000,-176.84634028,0.0002736,7]
[424867636,1781217044000,-155.51,0.00027594,7]
[424867635,1781217044000,-155.66,0.00027594,7]
[424867613,1781217044000,-151.0,0.00027266,2]
[424867602,1781217044000,-152.91177246,0.0002723,2]
[424867615,1781217044000,-172.67656375,0.00027359,7]
[424867637,1781217044000,-158.31,0.000276,7]
[424867595,1781217044000,-151.0,0.00027046,2]
[424867597,1781217044000,-1158.2401763,0.0002711,2]
[424867596,1781217044000,-151.0,0.00027101,2]
[424867599,1781217044000,-151.0,0.00027156,2]
[424867598,1781217044000,-116863.9309896,0.0002711,2]
[424867601,1781217044000,-158.55225598,0.0002723,2]
[424867600,1781217044000,-151.0,0.00027211,2]
[424867606,1781217044000,-217.15233878,0.00027264,2]
[424867603,1781217044000,-152.26122564,0.00027264,2]
[424867605,1781217044000,-181.08010149,0.00027264,2]
[424867604,1781217044000,-1104.10242787,0.00027264,2]
[424867607,1781217044000,-217.15233878,0.00027264,2]
[424867608,1781217044000,-151.0,0.00027264,2]
[424867610,1781217044000,-9905.59807649,0.00027264,2]
[424867609,1781217044000,-217.15233878,0.00027264,2]
[424867611,1781217044000,-511.68816082,0.00027264,2]
[424867614,1781217044000,-355.0,0.00027301,2]
[424867616,1781217044000,-169.99266168,0.00027359,7]
[424867612,1781217044000,-151.0,0.00027264,2]
[424867638,1781217044000,-155.66,0.00027639,30]
[424867640,1781217044000,-155.66,0.00027683,2]
[424867645,1781217044000,-164.25,0.00027731,7]
[424867660,1781217044000,-155.66,0.00027862,7]
[424867667,1781217044000,-155.51,0.00027951,2]
[424867666,1781217044000,-155.66,0.00027951,2]
[424867668,1781217044000,-150.0,0.00027973,2]
[424867672,1781217044000,-273.28,0.00028033,30]
[424867673,1781217044000,-155.66,0.0002804,30]
[424867669,1781217044000,-155.66,0.00027996,7]
[424867674,1781217044000,-155.51,0.0002804,30]
[424867670,1781217044000,-155.51,0.00027996,7]
[424867675,1781217044000,-155.66,0.00028085,2]
[424867676,1781217044000,-155.51,0.00028085,2]
[424867677,1781217044000,-164.25,0.00028093,30]
[424867678,1781217044000,-158.31,0.000281,7]
[424867679,1781217044000,-155.72,0.0002813,7]
[424867681,1781217044000,-192.1695424,0.00028139,2]
[424867680,1781217044000,-155.56,0.0002813,7]
[424867683,1781217044000,-425.6,0.00028267,2]
[424867682,1781217044000,-273.28,0.00028194,7]
[424867639,1781217044000,-155.51,0.00027639,30]
[424867659,1781217044000,-155.51,0.00027817,2]
[424867662,1781217044000,-273.28,0.00027872,2]
[424867671,1781217044000,-215.95576085,0.00028,10]
[424867665,1781217044000,-164.25,0.00027912,2]
[424867641,1781217044000,-155.51,0.00027683,2]
[424867664,1781217044000,-155.51,0.00027906,30]
[424867644,1781217044000,-155.51,0.00027728,7]
[424867643,1781217044000,-155.66,0.00027728,7]
[424867642,1781217044000,-273.28,0.00027711,7]
[424867647,1781217044000,-155.51,0.00027773,30]
[424867651,1781217044000,-187.78006524,0.00027812,2]
[424867646,1781217044000,-155.66,0.00027773,30]
[424867648,1781217044000,-199.93762835,0.0002779,5]
[424867653,1781217044000,-225.18697532,0.00027812,2]
[424867649,1781217044000,-152.26122564,0.00027812,2]
[424867650,1781217044000,-1104.10242787,0.00027812,2]
[424867652,1781217044000,-225.18697532,0.00027812,2]
[424867655,1781217044000,-169.83713064,0.00027812,2]
[424867654,1781217044000,-151.0,0.00027812,2]
[424867656,1781217044000,-3608.58677102,0.00027812,2]
[424867657,1781217044000,-151.0,0.00027812,2]
[424867658,1781217044000,-155.66,0.00027817,2]
[424867663,1781217044000,-155.66,0.00027906,30]
[424867661,1781217044000,-155.51,0.00027862,7]
[424867717,1781217045000,-273.28,0.00028838,2]
[424867715,1781217045000,-1203.59,0.00028785,11]
[424867723,1781217045000,-201.93286098,0.00028908,2]
[424867725,1781217045000,-151.0,0.00028908,2]
[424867711,1781217045000,-176.52441709,0.00028653,7]
[424867716,1781217045000,-164.25,0.00028818,7]
[424867710,1781217045000,-183.16706212,0.00028653,7]
[424867709,1781217045000,-353.69268055,0.00028653,7]
[424867718,1781217045000,-1203.59,0.00028845,9]
[424867724,1781217045000,-346.05832315,0.00028908,2]
[424867720,1781217045000,-475.0,0.000289,2]
[424867730,1781217045000,-324.8,0.00029,2]
[424867722,1781217045000,-1104.10242787,0.00028908,2]
[424867721,1781217045000,-152.26122564,0.00028908,2]
[424867726,1781217045000,-151.0,0.00028908,2]
[424867727,1781217045000,-267.48,0.00028935,13]
[424867732,1781217045000,-151.0,0.00029153,30]
[424867728,1781217045000,-273.33,0.00029,30]
[424867729,1781217045000,-164.28,0.00029,2]
[424867731,1781217045000,-675.0,0.00029153,30]
[424867734,1781217045000,-299.0,0.00029153,30]
[424867714,1781217045000,-1307.32542544,0.00028709,2]
[424867719,1781217045000,-267.47,0.00028889,14]
[424867712,1781217045000,-273.28,0.00028677,7]
[424867688,1781217045000,-1104.10242787,0.0002836,2]
[424867708,1781217045000,-348.16063233,0.00028651,7]
[424867733,1781217045000,-151.0,0.00029153,30]
[424867685,1781217045000,-273.28,0.00028355,2]
[424867684,1781217045000,-164.25,0.00028275,7]
[424867687,1781217045000,-152.26122564,0.0002836,2]
[424867692,1781217045000,-151.0,0.0002836,2]
[424867691,1781217045000,-233.5188934,0.0002836,2]
[424867686,1781217045000,-1203.59,0.00028357,13]
[424867689,1781217045000,-194.72792766,0.0002836,2]
[424867690,1781217045000,-337.33375189,0.0002836,2]
[424867693,1781217045000,-151.0,0.0002836,2]
[424867695,1781217045000,-267.47,0.00028416,7]
[424867697,1781217045000,-502.0,0.00028492,11]
[424867696,1781217045000,-164.25,0.00028456,2]
[424867698,1781217045000,-273.28,0.00028516,30]
[424867705,1781217045000,-164.25,0.00028637,30]
[424867704,1781217045000,-268.35964302,0.000286,2]
[424867699,1781217045000,-1203.59,0.00028535,5]
[424867702,1781217045000,-268.35964303,0.000286,2]
[424867700,1781217045000,-802.42,0.00028553,8]
[424867703,1781217045000,-268.35964302,0.000286,2]
[424867701,1781217045000,-2000.0,0.00028593,7]
[424867706,1781217045000,-345.35312749,0.00028651,7]
[424867707,1781217045000,-339.98532336,0.00028651,7]
[424867713,1781217045000,-960.22612449,0.00028709,2]
[424867735,1781217045000,-153.0,0.00029153,30]
[424867694,1781217045000,-10308.5698316,0.00028383,2]
[424867738,1781217045000,-153.0,0.00029153,30]
[424867769,1781217045000,-158.31,0.000299,7]
[424867768,1781217045000,-353.04883418,0.00029515,7]
[424867767,1781217045000,-366.33412424,0.00029515,7]
[424867765,1781217045000,-530.53902083,0.00029515,7]
[424867771,1781217045000,-150.22234137,0.000299,2]
[424867781,1781217045000,-350.0,0.00029973,5]
[424867782,1781217045000,-860.0,0.00029986,10]
[424867783,1781217045000,-157.46172826,0.00029998,2]
[424867770,1781217045000,-150.22234143,0.000299,2]
[424867779,1781217045000,-152.0,0.00029923,3]
[424867777,1781217045000,-150.22234137,0.000299,2]
[424867772,1781217045000,-150.22234137,0.000299,2]
[424867775,1781217045000,-150.22234137,0.000299,2]
[424867788,1781217045000,-1013.1032934,0.0003,2]
[424867776,1781217045000,-150.22234137,0.000299,2]
[424867780,1781217045000,-500.0,0.00029969,2]
[424867784,1781217045000,-151.0,0.00029999,2]
[424867787,1781217045000,-14431.56309174,0.0003,7]
[424867785,1781217045000,-200.0,0.00029999,2]
[424867786,1781217045000,-37154.77266569,0.0003,7]
[424867790,1781217045000,-26985.49117731,0.0003,5]
[424867791,1781217045000,-316.0841448,0.0003,120]
[424867736,1781217045000,-158.0,0.00029153,30]
[424867762,1781217045000,-293.57143783,0.00029513,7]
[424867764,1781217045000,-522.2409485,0.00029513,7]
[424867773,1781217045000,-150.22234137,0.000299,2]
[424867766,1781217045000,-221.73460529,0.00029515,7]
[424867740,1781217045000,-741.0,0.00029153,30]
[424867763,1781217045000,-509.97798504,0.00029513,7]
[424867741,1781217045000,-160.0,0.00029153,30]
[424867743,1781217045000,-154.0,0.00029154,30]
[424867737,1781217045000,-155.0,0.00029153,30]
[424867739,1781217045000,-153.0,0.00029153,30]
[424867742,1781217045000,-481.0,0.00029153,30]
[424867745,1781217045000,-802.42,0.00029197,11]